bitfinex-derivatives/quotes_ETHF0:USTF0_20260204
["timestamp","ask_amount","ask_price","bid_price","bid_amount"]
[1770245473063,7.89762806,2130.2,2129.0,7.14711321]
[1770245473264,7.18652968,2129.8,2128.7,7.14228423]
[1770245473569,7.18652968,2129.6,2128.7,7.14228423]
[1770245473861,7.18652968,2129.6,2127.5,3.87375066]
[1770245473862,7.18652968,2129.6,2128.0,7.14228423]
[1770245474456,1.55796838,2130.2,2128.6,7.14228423]
[1770245474457,7.18652968,2130.1,2128.6,7.14228423]
[1770245474658,7.18652968,2130.1,2128.6,7.37769423]
[1770245475263,7.18652968,2130.1,2128.8,7.14228423]
[1770245476867,7.42177968,2130.1,2128.8,7.14228423]
[1770245477067,7.18652968,2129.8,2128.8,7.14228423]
[1770245479471,7.42179968,2129.9,2128.8,7.14228423]
[1770245480466,0.23527,2129.9,2128.8,7.14228423]
[1770245481672,0.47585838,2130.2,2128.8,7.14228423]
[1770245481866,7.66238806,2130.2,2128.8,7.37766423]
[1770245482673,0.47585838,2130.2,2129.0,7.14228423]
[1770245483069,0.47585838,2130.2,2129.0,7.37764423]
[1770245483270,0.47585838,2130.2,2129.2,7.37762423]
[1770245484372,10.71370968,2130.7,2129.2,7.37762423]
[1770245484571,0.23518,2130.7,2129.4,7.21256161]
[1770245484869,0.47,2130.8,2129.4,7.44788161]
[1770245485075,0.47,2130.8,2129.6,7.21256161]
[1770245485474,0.47520929,2130.8,2129.6,7.21644025]
[1770245486472,0.47520929,2130.8,2129.6,7.45174025]
[1770245486976,0.47520929,2130.8,2129.8,7.21256161]
[1770245487177,0.47520929,2130.8,2129.8,7.44783161]
[1770245487776,7.87022506,2131.6,2130.3,7.21256161]
[1770245487976,0.47,2131.7,2130.5,7.21256161]
[1770245488178,0.47,2131.7,2130.5,7.44776161]
[1770245488878,8.1088635,2131.7,2130.7,7.21256161]
[1770245490074,0.47371844,2131.7,2130.7,7.21256161]
[1770245491572,0.47,2132.3,2130.9,7.21256161]
[1770245491772,0.47,2132.3,2130.9,7.44772161]
[1770245492271,8.10514506,2132.3,2130.9,7.44772161]
[1770245492578,8.10514506,2132.3,2131.1,7.21256161]
[1770245492579,8.11011011,2132.3,2131.1,7.21256161]
[1770245492781,0.47496505,2132.3,2131.1,7.21708416]
[1770245493579,0.47496505,2132.3,2131.1,7.45221416]
[1770245494475,0.47496505,2132.3,2131.3,7.21256161]
[1770245494678,7.63514506,2132.9,2131.6,7.21256161]
[1770245494877,0.23493,2133.0,2131.6,7.44764161]
[1770245495078,7.63514506,2133.2,2131.8,7.21256161]
[1770245495583,0.47,2133.4,2132.0,7.21256161]
[1770245495778,8.11116182,2133.4,2132.0,7.21256161]
[1770245495978,8.11116182,2133.4,2132.0,7.44759161]
[1770245496178,8.11116182,2133.4,2132.2,7.21256161]
[1770245496378,0.47601676,2133.4,2132.2,7.44757161]
[1770245496578,0.47601676,2133.4,2132.3,0.235]
[1770245496884,0.47601676,2133.4,2132.4,7.44755161]
[1770245498179,7.63514506,2134.5,2133.2,7.21256161]
[1770245498376,7.63514506,2134.5,2133.2,7.44746161]
[1770245498675,7.63514506,2134.5,2133.2,7.21256161]
[1770245499275,7.63514506,2134.3,2133.2,7.21808283]
[1770245499479,8.10514506,2134.3,2133.2,0.00552122]
[1770245503684,7.63514506,2134.1,2133.2,0.00552122]
[1770245503882,7.63514506,2133.6,2132.1,7.21256161]
[1770245504281,7.87000506,2133.6,2132.1,7.21256161]
[1770245504889,7.87000506,2133.6,2132.1,7.21593752]
[1770245505090,7.63514506,2133.4,2132.1,7.21593752]
[1770245505885,7.63514506,2133.4,2132.1,0.00337591]
[1770245505886,0.2349,2133.3,2132.1,0.00337591]
[1770245506082,7.63514506,2132.9,2132.1,0.00337591]
[1770245506282,7.87503079,2132.9,2132.1,0.00337591]
[1770245506482,7.63514506,2132.7,2132.1,0.00337591]
[1770245507991,7.87010506,2132.7,2132.1,0.00337591]
[1770245512291,7.87010506,2132.7,2132.2,0.9379]
[1770245513585,0.00494573,2132.9,2132.3,7.21256161]
[1770245513789,0.00494573,2132.9,2132.2,0.9379]
[1770245513790,7.64009079,2132.9,2132.2,0.9379]
[1770245514792,0.00494573,2132.9,2132.2,8.08310146]
[1770245517690,7.29494846,2132.9,2132.2,8.08310146]
[1770245518092,0.00494573,2132.9,2132.2,8.08310146]
[1770245521897,7.6069562,2132.9,2132.2,8.08310146]
[1770245522093,7.6069562,2132.9,2132.2,0.9379]
[1770245523004,7.6069562,2132.9,2132.2,8.61096635]
[1770245523404,7.6069562,2132.9,2132.2,7.67306635]
[1770245523605,0.00494573,2132.9,2132.2,7.67306635]
[1770245524809,0.00494573,2132.9,2132.3,0.9379]
[1770245525009,0.00494573,2132.9,2132.3,8.61096635]
[1770245527407,0.23491,2133.1,2132.3,8.61096635]
[1770245527612,0.23483,2133.9,2132.5,7.67306635]
[1770245527811,0.23483,2133.9,2132.5,7.90804635]
[1770245528208,7.60201047,2134.1,2132.7,7.67306635]
[1770245528507,7.6058898,2134.1,2132.7,7.67306635]
[1770245529107,0.00387933,2134.1,2132.7,7.67306635]
[1770245529311,0.23478,2134.3,2132.9,7.90799635]
[1770245529612,7.60201047,2134.4,2133.1,7.67306635]
[1770245529913,7.60201047,2134.4,2133.1,7.90797635]
[1770245530110,7.60201047,2134.6,2133.4,7.67306635]
[1770245530309,7.60753899,2134.6,2133.4,7.67306635]
[1770245530809,7.60753899,2134.6,2133.6,7.90792635]
[1770245530810,0.00552852,2134.6,2133.6,7.90792635]
[1770245531111,0.469,2134.7,2133.6,7.91132985]
[1770245531309,7.83669047,2135.3,2133.9,7.67306635]
[1770245532109,7.84242294,2135.3,2133.9,7.67306635]
[1770245533816,0.24041247,2135.3,2133.9,7.67306635]
[1770245534015,0.00573247,2135.3,2134.1,7.67306635]
[1770245534212,7.60201047,2136.2,2134.8,7.67306635]
[1770245534417,0.23456,2136.3,2134.8,7.67306635]
[1770245534418,7.60201047,2136.1,2134.8,7.67306635]
[1770245534811,7.60201047,2135.9,2134.8,7.67306635]
[1770245535216,7.60686706,2135.9,2134.8,7.67306635]
[1770245535616,0.00485659,2135.9,2134.8,7.67306635]
[1770245536519,7.60686706,2135.9,2134.8,7.67306635]
[1770245539414,7.60686706,2135.9,2134.9,0.9368]
[1770245539817,7.60686706,2135.9,2134.9,8.60986635]
[1770245546824,7.84147706,2135.9,2134.9,8.60986635]
[1770245549123,7.63607441,2135.7,2134.9,8.60986635]
[1770245551827,7.40144441,2135.7,2134.9,0.9368]
[1770245552024,7.40144441,2135.7,2133.6,1.0837535]
[1770245552025,7.40144441,2134.8,2133.6,0.0034035]
[1770245552232,8.48136441,2134.5,2133.0,6.99289663]
[1770245552426,7.40144441,2134.1,2133.0,6.50695563]
[1770245552626,7.40144441,2134.1,2132.4,0.23499]
[1770245552828,7.40144441,2133.6,2132.0,0.469]
[1770245553225,7.40559232,2133.6,2132.0,0.47427217]
[1770245553429,7.64045232,2133.6,2132.0,0.47427217]
[1770245553730,7.64045232,2133.6,2132.1,0.938]
[1770245554720,7.64045232,2133.6,2132.2,6.99289663]
[1770245556932,7.40144441,2133.4,2132.1,0.938]
[1770245557132,7.40144441,2133.4,2132.1,7.93089663]
[1770245560636,7.63632441,2133.4,2132.1,7.93089663]
[1770245561136,0.00414791,2133.6,2132.1,0.938]
[1770245561137,7.63634441,2133.2,2132.1,0.938]
[1770245562836,1.08453791,2133.6,2132.1,0.938]
[1770245562837,7.40144441,2133.0,2132.1,0.938]
[1770245563038,7.63637441,2133.0,2132.1,0.938]
[1770245563238,7.63639441,2132.8,2131.5,6.99289663]
[1770245563436,7.40144441,2132.6,2131.0,0.23514]
[1770245563636,7.40144441,2132.6,2131.1,6.99289663]
[1770245564235,7.40144441,2132.6,2131.1,6.99876988]
[1770245569542,7.40144441,2132.4,2131.1,6.99876988]
[1770245571938,7.40144441,2132.2,2131.1,6.99876988]
[1770245572339,7.63646441,2132.2,2131.1,0.00587325]
[1770245573341,0.23503,2132.1,2131.1,0.00587325]
[1770245573543,7.40144441,2132.0,2131.1,0.00587325]
[1770245574143,7.40144441,2132.0,2131.1,7.58415986]
[1770245574339,7.42917492,2132.6,2131.1,7.58415986]
[1770245574543,0.469,2132.7,2131.1,7.58415986]
[1770245574544,0.469,2132.7,2131.7,7.81335661]
[1770245574940,7.42917492,2133.2,2131.9,7.57828661]
[1770245575241,7.89817492,2133.4,2132.1,7.57828661]
[1770245575545,7.90216321,2133.4,2132.3,7.57828661]
[1770245575746,0.47298829,2133.4,2132.3,7.57828661]
[1770245576447,0.47298829,2133.4,2132.5,7.57828661]
[1770245577149,7.42917492,2133.7,2132.5,7.57828661]
[1770245577345,0.00558079,2133.5,2132.5,7.57828661]
[1770245577546,7.43475571,2133.5,2132.5,7.57828661]
[1770245577752,7.43475571,2133.4,2132.5,7.57828661]
[1770245578050,7.42917492,2133.4,2132.5,7.57828661]
[1770245578250,7.43983996,2133.4,2132.5,7.57828661]
[1770245578446,7.43425917,2133.4,2132.5,7.57828661]
[1770245578762,7.43983996,2133.4,2132.5,7.57828661]
[1770245578944,7.43983996,2133.4,2132.1,7.57828661]
[1770245579140,7.43475571,2133.2,2131.6,7.81335661]
[1770245579341,7.42917492,2133.2,2131.6,7.81335661]
[1770245580050,8.13307492,2133.2,2131.6,7.81335661]
[1770245580350,8.13865571,2133.2,2131.6,7.81335661]
[1770245581348,8.13307492,2133.2,2131.6,7.81335661]
[1770245581554,7.3774995,2132.8,2131.6,7.81335661]
[1770245583655,0.23494,2132.9,2131.6,7.57828661]
[1770245583854,7.6124395,2132.9,2131.6,7.57828661]
[1770245586954,7.61802029,2132.9,2131.6,7.57828661]
[1770245589260,7.38308029,2132.6,2131.6,7.57828661]
[1770245589462,7.3774995,2132.6,2131.6,7.57828661]
[1770245591567,0.23494,2132.9,2131.6,7.57828661]
[1770245591866,7.38308029,2132.8,2131.6,7.57828661]
[1770245593269,0.00558079,2132.7,2131.6,7.57828661]
[1770245593867,7.38308029,2132.7,2131.6,7.57828661]
[1770245594066,7.3774995,2132.2,2131.4,7.63774774]
[1770245594260,7.38308029,2132.1,2131.4,7.63774774]
[1770245594762,0.00558079,2131.8,2131.4,7.63774774]
[1770245594961,0.01066934,2131.8,2131.4,7.63774774]
[1770245595167,0.00558079,2131.7,2131.4,7.63774774]
[1770245595365,0.00508855,2131.8,2131.3,7.63774774]
[1770245595570,0.00558079,2131.6,2131.3,7.63774774]
[1770245595872,0.00558079,2131.5,2131.3,7.63774774]
[1770245596362,0.00558079,2131.4,2131.2,7.63774774]
[1770245596566,0.00558079,2131.6,2131.2,7.63774774]
[1770245596968,0.00558079,2131.5,2131.2,7.63774774]
[1770245597168,0.00558079,2131.6,2131.2,7.63774774]
[1770245597671,0.00558079,2131.5,2131.2,7.63774774]
[1770245597872,0.00558079,2131.6,2131.2,7.63774774]
[1770245598276,0.00508855,2131.8,2131.2,7.63774774]
[1770245598578,7.3774995,2132.2,2131.2,7.63774774]
[1770245598874,0.469,2132.3,2131.2,7.63774774]
[1770245599665,0.47347128,2132.3,2131.2,7.63774774]
[1770245600574,7.85097078,2132.3,2131.2,7.63774774]
[1770245600775,0.00558079,2132.2,2131.2,7.63774774]
[1770245600974,0.00558079,2132.1,2131.2,7.63774774]
[1770245601176,0.00558079,2132.2,2131.2,7.63774774]
[1770245601978,7.85097078,2132.3,2131.2,7.63774774]
[1770245602179,0.00558079,2132.2,2131.2,7.63774774]
[1770245602673,0.00558079,2132.1,2131.5,7.87283774]
[1770245602873,0.00558079,2132.2,2131.5,7.87283774]
[1770245603178,0.00558079,2132.0,2131.5,7.87283774]
[1770245603678,0.00558079,2131.9,2131.5,7.87283774]
[1770245603877,7.38197078,2132.3,2131.5,7.87283774]
[1770245603878,0.00558079,2132.0,2131.5,7.87283774]
[1770245604377,0.00558079,2131.9,2131.5,7.87283774]
[1770245604677,0.00558079,2132.0,2131.5,7.87283774]
[1770245605073,0.00447128,2132.3,2131.5,7.87283774]
[1770245605576,0.469,2132.7,2131.7,7.61546067]
[1770245605773,6.98110292,2133.5,2132.3,7.61546067]
[1770245605977,8.35956383,2134.1,2132.7,7.61546067]
[1770245605978,6.98110292,2133.9,2132.7,7.61546067]
[1770245606179,0.00558079,2133.9,2132.7,7.85042067]
[1770245606480,5.5730675,2134.3,2132.7,7.85042067]
[1770245606481,0.469,2134.4,2133.1,7.61546067]
[1770245606776,0.00330087,2134.4,2133.5,7.61546067]
[1770245606979,6.98110292,2134.8,2133.5,7.85033067]
[1770245607278,0.00558079,2134.7,2133.5,7.85033067]
[1770245607671,0.00558079,2134.6,2133.5,7.85033067]
[1770245607872,0.0052138,2134.6,2133.5,7.85033067]
[1770245608080,0.01079459,2134.6,2133.5,7.85033067]
[1770245608379,0.0052138,2134.6,2133.5,7.85033067]
[1770245608580,0.01079459,2134.6,2133.5,7.85033067]
[1770245609679,0.0052138,2134.6,2133.5,7.85033067]
[1770245609881,0.0052138,2134.6,2133.7,7.61546067]
[1770245610176,6.98110292,2135.4,2133.7,7.61546067]
[1770245610384,6.98110292,2135.4,2133.9,7.61546067]
[1770245610578,0.00558079,2135.2,2133.9,7.85028067]
[1770245610780,6.98110292,2135.4,2134.1,7.61546067]
[1770245610980,0.00558079,2135.3,2134.1,7.61546067]
[1770245611180,0.0040367,2135.4,2134.1,7.61546067]
[1770245611380,0.00558079,2135.3,2134.3,7.61546067]
[1770245611581,0.00961749,2135.4,2134.3,7.61546067]
[1770245611884,0.00558079,2135.2,2134.3,7.61546067]
[1770245612283,0.00558079,2135.1,2134.3,7.61546067]
[1770245612479,0.00558079,2135.2,2134.3,7.61546067]
[1770245612884,0.00558079,2135.1,2134.3,7.61546067]
[1770245613080,0.00558079,2135.2,2134.3,7.61546067]
[1770245614084,0.0040367,2135.4,2134.3,7.61546067]
[1770245614390,0.00961749,2135.4,2134.3,7.85024067]
[1770245615388,0.00558079,2135.3,2134.3,7.85024067]
[1770245616390,0.0040367,2135.4,2134.3,7.85024067]
[1770245617292,0.469,2135.7,2134.6,7.61546067]
[1770245617588,0.469,2135.7,2134.6,7.85021067]
[1770245617789,0.00558079,2135.6,2134.6,7.85021067]
[1770245618385,0.00558079,2135.5,2134.6,7.85564929]
[1770245619290,0.0038867,2135.6,2134.6,7.85564929]
[1770245619495,0.0038867,2135.6,2134.8,7.61546067]
[1770245619788,0.00946749,2135.6,2134.8,7.61546067]
[1770245619989,0.00558079,2135.5,2134.8,7.61546067]
[1770245620185,0.00558079,2135.4,2134.8,7.61546067]
[1770245620383,0.00558079,2135.5,2134.8,7.61546067]
[1770245620786,0.00558079,2135.4,2134.8,7.61546067]
[1770245620991,0.0038867,2135.6,2134.8,7.61546067]
[1770245621191,0.00558079,2135.5,2134.8,7.61546067]
[1770245621687,0.0038867,2135.6,2134.8,7.61546067]
[1770245621688,0.00558079,2135.4,2134.8,7.61546067]
[1770245621887,0.00558079,2135.5,2134.8,7.61546067]
[1770245622093,0.00558079,2135.5,2135.0,7.61546067]
[1770245622294,0.0038867,2135.6,2135.0,7.61546067]
[1770245622494,0.00558079,2135.3,2135.0,7.61546067]
[1770245622690,0.0038867,2135.6,2135.0,7.61546067]
[1770245623986,6.98110292,2136.0,2135.0,7.61546067]
[1770245624893,6.98110292,2136.0,2135.2,7.61546067]
[1770245625095,6.98700519,2136.0,2135.2,7.61546067]
[1770245625891,6.98700519,2136.0,2135.1,0.9367]
[1770245626088,7.22160519,2136.0,2134.8,7.61546067]
[1770245626291,6.98110292,2135.3,2134.0,7.61546067]
[1770245626496,7.21580292,2135.1,2133.7,7.61546067]
[1770245626995,7.21580292,2135.1,2133.5,7.85033067]
[1770245627188,6.98110292,2135.1,2133.5,7.85033067]
[1770245627389,7.21582292,2134.9,2133.5,7.62149946]
[1770245627590,7.21582292,2134.9,2133.6,0.3308]
[1770245627791,6.98110292,2134.7,2133.6,0.3308]
[1770245629797,7.21584292,2134.7,2133.6,0.3308]
[1770245630898,6.98110292,2134.5,2133.6,0.3308]
[1770245631096,6.98494537,2134.5,2133.6,0.3308]
[1770245634499,7.21970537,2134.5,2133.5,0.00603879]
[1770245635694,7.4655348,2134.3,2133.5,0.00603879]
[1770245635896,7.7003148,2134.3,2133.5,0.00288825]
[1770245638199,7.4655348,2134.1,2133.5,0.00288825]
[1770245640799,0.469,2134.4,2133.5,7.56368764]
[1770245640800,7.41722566,2134.3,2133.5,7.56368764]
[1770245641299,0.469,2134.4,2133.5,7.56368764]
[1770245641799,0.469,2134.4,2133.7,7.56079939]
[1770245642792,0.00384245,2134.5,2133.7,7.56079939]
[1770245643596,7.42106811,2134.5,2133.7,7.56079939]
[1770245643798,7.42106811,2134.5,2133.5,7.56368764]
[1770245646297,7.65583811,2134.5,2133.5,0.00288825]
[1770245648303,7.41722566,2134.3,2133.5,0.00288825]
[1770245656103,12.99029316,2134.3,2133.5,0.00288825]
[1770245656307,7.41722566,2134.2,2133.5,0.00288825]
[1770245659406,7.41722566,2134.0,2133.0,7.56079939]
[1770245659605,7.65204566,2134.0,2132.8,8.02979939]
[1770245659806,7.41722566,2133.8,2132.8,8.02979939]
[1770245660408,7.41722566,2133.8,2132.8,0.00569214]
[1770245664905,7.65206566,2133.8,2132.3,2.69282659]
[1770245665108,7.65206566,2133.8,2131.8,7.90582125]
[1770245665109,1.08155,2131.3,2129.6,6.95589755]
[1770245665305,7.27774714,2130.9,2129.6,6.95589755]
[1770245665612,7.27774714,2130.9,2129.7,6.95589755]
[1770245665811,7.27774714,2130.9,2129.7,18.75440004]
[1770245666010,8.59898938,2130.9,2129.4,6.89677212]
[1770245666211,2.29813324,2130.4,2128.3,0.23544]
[1770245666512,7.74674714,2130.3,2128.3,0.23544]
[1770245666911,7.27774714,2129.9,2128.1,0.469]
[1770245667210,0.23531,2129.5,2128.1,0.00354145]
[1770245667405,0.469,2129.4,2128.1,0.00354145]
[1770245667603,0.47428522,2129.4,2128.1,6.959439]
[1770245667807,0.47428522,2129.4,2128.1,25.71383904]
[1770245668007,0.47428522,2129.4,2128.2,6.95589755]
[1770245668307,0.41042699,2129.4,2128.3,6.95589755]
[1770245668513,0.469,2130.2,2129.0,6.95589755]
[1770245668707,0.469,2131.0,2129.2,6.95589755]
[1770245668914,0.469,2131.0,2129.6,6.95589755]
[1770245669207,7.74674714,2131.0,2129.7,6.95589755]
[1770245669510,7.74674714,2131.0,2129.9,6.95589755]
[1770245669713,7.75116992,2131.0,2129.9,6.95589755]
[1770245669911,7.75116992,2131.0,2129.9,25.71029759]
[1770245670210,7.75116992,2131.0,2130.0,6.95589755]
[1770245670805,7.75116992,2131.0,2130.1,6.95589755]
[1770245671603,7.80116992,2131.0,2130.1,6.95589755]
[1770245671808,0.52342278,2131.0,2130.2,6.95589755]
[1770245672007,0.05442278,2131.0,2130.8,6.95589755]
[1770245672313,44.17916922,2132.5,2130.8,6.95589755]
[1770245672314,0.469,2131.8,2130.8,6.95589755]
[1770245672716,0.469,2131.8,2131.0,6.95589755]
[1770245673208,0.4746934,2131.8,2131.2,25.71029759]
[1770245673409,0.4746934,2131.8,2131.2,6.96184127]
[1770245673609,0.4746934,2131.8,2131.3,25.71029759]
[1770245674214,0.4746934,2131.8,2131.2,0.00594372]
[1770245674414,0.4746934,2131.8,2131.3,18.75440004]
[1770245674815,0.4746934,2131.8,2131.2,0.00594372]
[1770245675115,0.4746934,2131.8,2131.2,18.76034376]
[1770245677319,7.74674714,2132.3,2131.5,6.95589755]
[1770245678015,0.469,2132.3,2131.5,6.95589755]
[1770245678213,0.469,2132.3,2131.5,25.71029759]
[1770245678520,7.75148439,2132.3,2131.2,6.82251975]
[1770245679518,7.75148439,2132.3,2131.2,6.76442226]
[1770245679727,7.27774714,2132.1,2131.2,0.00576074]
[1770245679925,7.27774714,2132.1,2130.6,0.23519]
[1770245680221,7.51276714,2132.1,2130.1,0.23524]
[1770245680425,7.51276714,2132.1,2130.0,0.469]
[1770245680426,7.51276714,2132.1,2130.3,18.75440004]
[1770245680626,7.27774714,2131.9,2130.3,18.75440004]
[1770245680928,7.51279714,2131.9,2130.3,0.00388155]
[1770245681122,7.51279714,2131.9,2130.5,18.75440004]
[1770245681320,7.51279714,2131.9,2130.6,18.75440004]
[1770245681524,7.51279714,2131.9,2130.6,6.95589755]
[1770245681720,7.51279714,2131.9,2131.0,6.95589755]
[1770245682424,7.27774714,2133.1,2132.1,6.95589755]
[1770245682619,7.27774714,2133.4,2131.8,0.23506]
[1770245682926,0.469,2133.6,2132.2,18.75440004]
[1770245683126,7.74674714,2133.6,2132.1,18.75440004]
[1770245683529,7.74674714,2133.6,2132.3,18.75440004]
[1770245683729,7.75174893,2133.6,2132.1,18.75440004]
[1770245684128,7.75174893,2133.6,2132.3,18.75440004]
[1770245684323,7.75174893,2133.6,2132.1,18.75440004]
[1770245684527,7.75174893,2133.6,2132.2,6.95589755]
[1770245684727,7.75174893,2133.6,2132.4,6.95589755]
[1770245685128,7.75174893,2133.6,2132.5,6.95589755]
[1770245685528,7.75174893,2133.6,2132.1,6.95589755]
[1770245685828,7.27774714,2133.4,2131.8,6.95934265]
[1770245686026,7.51265714,2133.2,2131.8,6.95934265]
[1770245686222,7.27774714,2133.0,2131.8,6.95934265]
[1770245686622,7.27774714,2133.0,2130.9,0.23515]
[1770245686823,7.27774714,2133.0,2131.3,18.75440004]
[1770245687428,7.27774714,2133.0,2130.7,1.08182]
[1770245687429,7.27774714,2133.0,2131.4,18.75440004]
[1770245687629,7.27774714,2133.0,2131.4,0.00424348]
[1770245687823,7.27774714,2133.0,2131.5,18.75440004]
[1770245688625,7.27774714,2133.0,2131.6,6.95589755]
[1770245689025,7.27774714,2133.0,2131.7,18.75440004]
[1770245689227,7.27774714,2132.8,2131.8,6.95589755]
[1770245689728,7.27774714,2132.8,2131.9,18.75440004]
[1770245690131,7.27774714,2132.8,2132.0,18.75440004]
[1770245690329,7.27774714,2132.8,2131.9,18.75440004]
[1770245690830,7.27774714,2132.8,2131.8,6.95589755]
[1770245690831,7.27774714,2132.8,2132.0,18.75440004]
[1770245691029,7.27774714,2132.8,2131.9,18.75440004]
[1770245691431,7.27774714,2132.8,2132.0,18.75440004]
[1770245691931,7.27774714,2132.8,2132.1,18.75440004]
[1770245692230,7.27774714,2132.8,2132.0,18.75440004]
[1770245692622,7.27774714,2132.8,2132.1,18.75440004]
[1770245693027,7.27774714,2132.8,2132.2,18.75440004]
[1770245693228,7.27774714,2132.8,2132.1,18.75440004]
[1770245693729,7.27774714,2132.8,2132.0,6.95589755]
[1770245693730,7.27774714,2132.8,2132.2,18.75440004]
[1770245693933,7.27774714,2132.8,2132.1,18.75440004]
[1770245694132,0.469,2132.9,2132.1,26.20801522]
[1770245694833,7.91854584,2132.9,2132.1,26.20801522]
[1770245695133,7.91854584,2132.9,2132.2,18.75440004]
[1770245695536,11.31419531,2132.8,2132.2,18.75440004]
[1770245695731,7.44954584,2132.8,2132.0,7.45361518]
[1770245696034,7.44954584,2132.8,2132.0,26.20801522]
[1770245696237,7.44954584,2132.8,2132.3,18.75440004]
[1770245696438,45.26355375,2132.7,2132.1,3.30591064]
[1770245696731,45.26355375,2132.6,2131.5,7.6951567]
[1770245696935,3.8673407,2132.5,2131.6,7.6951567]
[1770245697131,3.8673407,2132.4,2131.6,7.6951567]
[1770245697333,41.63117305,2132.7,2131.6,7.6951567]
[1770245697334,3.8673407,2132.3,2131.6,7.6951567]
[1770245697635,3.8673407,2132.2,2131.6,7.6951567]
[1770245697838,41.39621305,2132.5,2131.7,3.30591064]
[1770245698331,41.39621305,2132.3,2131.6,7.6951567]
[1770245698738,41.39621305,2132.3,2131.7,3.30591064]
[1770245699039,3.87632352,2132.2,2131.9,7.66577621]
[1770245699234,5.68135628,2132.6,2131.9,7.66577621]
[1770245699235,3.87632352,2132.1,2131.9,7.66577621]
[1770245699536,0.00361749,2132.1,2131.9,3.30591064]
[1770245699735,6.09159528,2132.9,2131.6,0.23508]
[1770245699936,3.87516517,2132.8,2131.6,0.23508]
[1770245700236,0.469,2132.9,2131.6,0.23508]
[1770245700237,3.87516517,2132.7,2131.6,0.23508]
[1770245700538,0.469,2132.9,2131.6,0.23508]
[1770245700834,0.47439018,2132.9,2131.7,0.23507]
[1770245701038,0.47439018,2132.9,2131.9,0.23504]
[1770245701338,0.47439018,2132.9,2132.0,7.45361518]
[1770245701638,5.62259528,2133.3,2132.2,7.45361518]
[1770245701838,5.62259528,2133.4,2132.2,7.68862518]
[1770245702236,5.62259528,2133.5,2132.2,7.68862518]
[1770245702737,5.62652445,2133.5,2132.2,7.68862518]
[1770245703430,0.00392917,2133.5,2132.2,7.68862518]
[1770245705538,0.60953684,2133.5,2132.2,7.68862518]
[1770245705740,0.60560767,2133.4,2132.2,7.68862518]
[1770245706642,0.7204294,2133.3,2132.2,7.45361518]
[1770245706940,0.7204294,2133.2,2132.2,7.45361518]
[1770245707141,0.7204294,2133.1,2132.2,7.45361518]
[1770245707839,6.34302468,2133.1,2132.2,7.45361518]
[1770245708038,5.85749528,2133.2,2132.2,7.45361518]
[1770245708443,5.62259528,2133.3,2132.2,7.45361518]
[1770245708636,5.62652445,2133.5,2132.2,7.68862518]
[1770245708840,0.00392917,2133.5,2132.4,7.45361518]
[1770245711643,5.62259528,2133.4,2132.4,7.45361518]
[1770245714845,5.62652445,2133.5,2132.4,7.45361518]
[1770245715647,5.86140445,2133.5,2132.4,7.45361518]
[1770245719245,5.62259528,2133.4,2132.4,7.45361518]
[1770245720044,10.18172993,2134.1,2133.0,7.35844197]
[1770245720347,5.62259528,2134.5,2133.2,7.59334197]
[1770245720542,6.09159528,2134.6,2133.2,7.59334197]
[1770245720747,0.469,2134.6,2133.2,7.59334197]
[1770245721247,0.4748669,2134.6,2133.2,7.5973305]
[1770245723743,0.67073681,2134.5,2133.2,7.3624305]
[1770245723951,1.5547569,2134.6,2132.9,7.51202646]
[1770245723952,0.90998628,2133.8,2132.9,7.51202646]
[1770245724149,0.67514628,2133.7,2132.9,7.51202646]
[1770245724448,0.00392917,2133.5,2132.9,7.51202646]
[1770245724750,0.00392917,2133.4,2132.9,7.51202646]
[1770245724953,0.00392917,2133.4,2132.9,7.51676763]
[1770245725151,0.00392917,2133.3,2132.9,7.51676763]
[1770245725351,0.00392917,2133.4,2132.9,7.51676763]
[1770245725547,0.23484,2133.8,2132.9,7.51676763]
[1770245725752,0.00392917,2133.7,2132.9,7.51676763]
[1770245726450,5.62259528,2134.2,2132.9,7.51676763]
[1770245726651,0.00392917,2134.1,2132.9,7.51676763]
[1770245726850,0.00392917,2133.9,2132.9,7.51676763]
[1770245727353,0.00392917,2133.8,2132.9,7.51676763]
[1770245727553,0.00392917,2133.9,2132.9,7.51676763]
[1770245727754,0.00392917,2133.8,2132.9,7.51676763]
[1770245727954,0.00392917,2133.7,2132.9,7.51676763]
[1770245728152,0.00392917,2133.9,2132.9,7.51676763]
[1770245728553,0.00392917,2133.8,2132.9,7.51676763]
[1770245728755,0.00392917,2133.9,2132.9,7.51676763]
[1770245729154,0.00392917,2133.8,2132.9,7.51676763]
[1770245729353,0.00392917,2133.9,2132.9,7.51676763]
[1770245729653,42.07012526,2133.8,2132.9,7.51676763]
[1770245730354,42.07012526,2133.7,2132.9,7.51676763]
[1770245731154,42.07012526,2133.8,2132.9,7.51676763]
[1770245731352,42.07405443,2133.8,2132.9,7.51676763]
[1770245731554,42.07012526,2133.7,2132.9,7.51676763]
[1770245733855,42.07012526,2133.6,2132.9,7.51676763]
[1770245734756,6.74706532,2133.8,2132.9,7.51676763]
[1770245735054,7.68608918,2133.9,2133.0,0.23492]
[1770245735455,7.68608918,2133.9,2133.1,0.23491]
[1770245736048,7.68608918,2134.5,2133.1,0.23491]
[1770245736254,7.68608918,2134.5,2133.2,0.2349]
[1770245736651,7.68608918,2134.4,2133.2,0.2349]
[1770245736859,7.68608918,2134.4,2133.3,0.23489]
[1770245737660,7.68608918,2134.3,2133.3,0.23489]
[1770245739561,12.37801835,2134.3,2133.3,0.23489]
[1770245739861,7.68608918,2134.2,2133.3,0.23489]
[1770245742361,12.37801835,2134.2,2133.3,0.23489]
[1770245742862,7.68608918,2134.2,2133.3,0.23489]
[1770245743062,7.68608918,2134.2,2133.4,0.23488]
[1770245743865,0.7096169,2134.6,2133.4,0.23488]
[1770245744066,12.37801835,2134.4,2133.5,0.23486]
[1770245744258,7.68608918,2134.4,2133.5,0.23486]
[1770245744464,7.68608918,2134.4,2133.5,1.17196]
[1770245744657,7.68608918,2134.4,2133.6,0.23486]
[1770245745766,7.68608918,2134.4,2133.7,0.23484]
[1770245746164,12.37801835,2134.4,2133.7,0.23484]
[1770245748869,7.68608918,2134.4,2133.7,0.23484]
[1770245749069,4.69192917,2134.3,2133.7,0.23484]
[1770245751673,4.69192917,2134.2,2133.7,0.23484]
[1770245751870,4.69192917,2134.3,2133.7,0.23484]
[1770245752166,7.68608918,2134.5,2133.8,0.23483]
[1770245752573,4.11836917,2134.4,2133.8,0.23483]
[1770245752772,4.11836917,2134.3,2133.8,0.23483]
[1770245752973,3.38462917,2134.3,2133.5,0.9371]
[1770245753168,7.68608918,2134.5,2133.9,0.23482]
[1770245753574,3.38462917,2134.3,2133.9,0.23482]
[1770245753966,3.38462917,2134.2,2133.9,0.23482]
[1770245754273,3.38462917,2134.3,2133.9,0.23482]
[1770245754672,3.38462917,2134.2,2133.9,0.23482]
[1770245754874,3.38462917,2134.3,2133.9,0.23482]
[1770245755266,2.87676917,2134.3,2133.9,0.23482]